[Event "Live Chess"]
[Site "Chess.com"]
[Date "2023.05.21"]
[Round "-"]
[White "Leonid_Starozhilov"]
[Black "wot-not"]
[Result "1-0"]
[WhiteElo "2638"]
[BlackElo "1522"]
[TimeControl "300"]
[EndTime "7:46:47 PDT"]
[Termination "Leonid_Starozhilov won by resignation"]

1. e4 {[%clk 0:04:57.3]} 1... e6 {[%clk 0:04:56.1]} 2. Nc3 {[%clk 0:04:56]} 2...
d5 {[%clk 0:04:47.3]} 3. d4 {[%clk 0:04:55.9]} 3... Nf6 {[%clk 0:04:44.8]} 4.
Bg5 {[%clk 0:04:53.7]} 4... Bb4 {[%clk 0:04:43.4]} 5. e5 {[%clk 0:04:52.4]} 5...
h6 {[%clk 0:04:42]} 6. Bd2 {[%clk 0:04:51.5]} 6... Bxc3 {[%clk 0:04:40.6]} 7.
Bxc3 {[%clk 0:04:48.4]} 7... Ne4 {[%clk 0:04:39.3]} 8. Bd3 {[%clk 0:04:48]} 8...
Nxc3 {[%clk 0:04:37.8]} 9. bxc3 {[%clk 0:04:46.9]} 9... c5 {[%clk 0:04:37]} 10.
h4 {[%clk 0:04:44.8]} 10... Nc6 {[%clk 0:04:34.1]} 11. Qg4 {[%clk 0:04:42.6]}
11... Qa5 {[%clk 0:04:26]} 12. Ne2 {[%clk 0:04:37.1]} 12... Bd7 {[%clk
0:04:11.1]} 13. Qxg7 {[%clk 0:04:34.6]} 13... O-O-O {[%clk 0:04:10.3]} 14. Qxf7
{[%clk 0:04:23.6]} 14... Nxd4 {[%clk 0:04:08.8]} 15. O-O {[%clk 0:04:13.9]}
15... Nxe2+ {[%clk 0:04:06.7]} 16. Bxe2 {[%clk 0:04:12.7]} 16... Qxc3 {[%clk
0:04:05.6]} 17. Rab1 {[%clk 0:04:04.6]} 17... Qxe5 {[%clk 0:04:02.4]} 18. Qe7
{[%clk 0:03:47.6]} 18... Qc7 {[%clk 0:03:35.7]} 19. Rb3 {[%clk 0:03:41.6]} 19...
Rde8 {[%clk 0:03:29.7]} 20. Qf6 {[%clk 0:03:37.2]} 20... Bc6 {[%clk 0:03:24.8]}
21. Rfb1 {[%clk 0:03:33.4]} 21... Rhg8 {[%clk 0:02:52.1]} 22. Bb5 {[%clk
0:03:27]} 22... b6 {[%clk 0:02:25.9]} 23. a4 {[%clk 0:03:17.3]} 23... Bxb5
{[%clk 0:02:24.4]} 24. Rxb5 {[%clk 0:03:15.3]} 24... Ref8 {[%clk 0:02:13.7]} 25.
Qxe6+ {[%clk 0:03:10.8]} 25... Kb7 {[%clk 0:02:13]} 26. a5 {[%clk 0:03:09.2]}
26... Qf4 {[%clk 0:02:09.7]} 27. Qxd5+ {[%clk 0:03:06.3]} 27... Kb8 {[%clk
0:02:07.7]} 28. Rxb6+ {[%clk 0:03:04.7]} 28... axb6 {[%clk 0:02:06.5]} 29. Rxb6+
{[%clk 0:03:04.3]} 29... Kc8 {[%clk 0:02:03.1]} 30. Qa8+ {[%clk 0:02:53.5]}
30... Kd7 {[%clk 0:01:56.9]} 31. Qa7+ {[%clk 0:02:51.2]} 31... Qc7 {[%clk
0:01:45.2]} 32. Rb7 {[%clk 0:02:49.1]} 32... Qxb7 {[%clk 0:01:43.6]} 33. Qxb7+
{[%clk 0:02:48.3]} 33... Kd6 {[%clk 0:01:42.9]} 34. Qb6+ {[%clk 0:02:47.2]}
34... Kd5 {[%clk 0:01:42.2]} 35. Qxh6 {[%clk 0:02:46.1]} 35... c4 {[%clk
0:01:30.4]} 36. c3 {[%clk 0:02:43.3]} 36... Kc5 {[%clk 0:01:28]} 37. Qb6+ {[%clk
0:02:41.8]} 37... Kd5 {[%clk 0:01:26.9]} 38. Qd4+ {[%clk 0:02:41.7]} 38... Kc6
{[%clk 0:01:24.3]} 39. Qxc4+ {[%clk 0:02:41.6]} 39... Kb7 {[%clk 0:01:23.6]} 40.
Qb5+ {[%clk 0:02:40.7]} 40... Kc7 {[%clk 0:01:22.6]} 41. Qb6+ {[%clk 0:02:40]}
41... Kd7 {[%clk 0:01:21.6]} 42. c4 {[%clk 0:02:39.2]} 42... Rb8 {[%clk
0:01:13.6]} 43. Qd4+ {[%clk 0:02:36.7]} 43... Kc6 {[%clk 0:01:11.6]} 44. Qd5+
{[%clk 0:02:35.5]} 44... Kc7 {[%clk 0:01:10.9]} 45. a6 {[%clk 0:02:34.6]} 45...
Rb1+ {[%clk 0:01:04.2]} 46. Kh2 {[%clk 0:02:33.1]} 46... Rb6 {[%clk 0:00:51.2]}
47. a7 {[%clk 0:02:30.5]} 47... Rb7 {[%clk 0:00:45.4]} 48. Qxg8 {[%clk
0:02:27.9]} 1-0

[Event "Live Chess"]
[Site "Chess.com"]
[Date "2023.05.21"]
[Round "-"]
[White "Crowded_House"]
[Black "chessfiction"]
[Result "0-1"]
[WhiteElo "1610"]
[BlackElo "2298"]
[TimeControl "300"]
[EndTime "7:46:56 PDT"]
[Termination "chessfiction won by resignation"]

1. d4 {[%clk 0:04:58.6]} 1... d5 {[%clk 0:04:58.3]} 2. Bg5 {[%clk 0:04:57.5]}
2... h6 {[%clk 0:04:56.8]} 3. Bh4 {[%clk 0:04:55.9]} 3... g5 {[%clk 0:04:55.9]}
4. Bg3 {[%clk 0:04:54.4]} 4... c5 {[%clk 0:04:55.4]} 5. c3 {[%clk 0:04:52.3]}
5... Bg7 {[%clk 0:04:53.8]} 6. e3 {[%clk 0:04:50.1]} 6... Nc6 {[%clk 0:04:52.3]}
7. Bd3 {[%clk 0:04:42.9]} 7... e5 {[%clk 0:04:50]} 8. dxe5 {[%clk 0:04:40.7]}
8... Nxe5 {[%clk 0:04:49.9]} 9. Nf3 {[%clk 0:04:27.2]} 9... Nxd3+ {[%clk
0:04:46.5]} 10. Qxd3 {[%clk 0:04:26.2]} 10... Ne7 {[%clk 0:04:46.2]} 11. Be5
{[%clk 0:04:18.3]} 11... f6 {[%clk 0:04:44.6]} 12. Bg3 {[%clk 0:04:15.9]} 12...
O-O {[%clk 0:04:41.3]} 13. O-O {[%clk 0:04:13.9]} 13... Bf5 {[%clk 0:04:39.3]}
14. Qd2 {[%clk 0:04:10.5]} 14... Qd7 {[%clk 0:04:32.8]} 15. Na3 {[%clk
0:04:05.7]} 15... Be4 {[%clk 0:04:31.5]} 16. Qe2 {[%clk 0:04:01]} 16... h5
{[%clk 0:04:29.8]} 17. h3 {[%clk 0:03:45.7]} 17... Nf5 {[%clk 0:04:24.4]} 18.
Nd2 {[%clk 0:03:36.1]} 18... Nxg3 {[%clk 0:04:20.6]} 19. fxg3 {[%clk 0:03:34.7]}
19... Bg6 {[%clk 0:04:20]} 20. Rfd1 {[%clk 0:03:32.7]} 20... Rae8 {[%clk
0:04:18]} 21. Nf1 {[%clk 0:03:29.6]} 21... Be4 {[%clk 0:04:14]} 22. Nd2 {[%clk
0:03:25.7]} 22... g4 {[%clk 0:04:08.3]} 23. Nxe4 {[%clk 0:03:22.4]} 23... Rxe4
{[%clk 0:04:08.2]} 24. Rd2 {[%clk 0:03:14.4]} 24... Qe6 {[%clk 0:04:04.7]} 25.
Rad1 {[%clk 0:03:09.6]} 25... Rxe3 {[%clk 0:03:57.2]} 26. Qf2 {[%clk 0:02:56.6]}
26... Re5 {[%clk 0:03:37.2]} 27. Qxc5 {[%clk 0:02:47.2]} 27... Bh6 {[%clk
0:03:34.1]} 28. Rxd5 {[%clk 0:02:42.9]} 28... Be3+ {[%clk 0:03:32.7]} 29. Kh2
{[%clk 0:02:38.9]} 29... Bxc5 {[%clk 0:03:31.4]} 0-1

[Event "Live Chess"]
[Site "Chess.com"]
[Date "2023.05.21"]
[Round "-"]
[White "YrrriKharkiv"]
[Black "raminguy"]
[Result "1-0"]
[WhiteElo "2047"]
[BlackElo "1950"]
[TimeControl "300"]
[EndTime "7:47:05 PDT"]
[Termination "YrrriKharkiv won by resignation"]

1. d4 {[%clk 0:04:57.2]} 1... d5 {[%clk 0:04:56.4]} 2. Nf3 {[%clk 0:04:56.9]}
2... Nf6 {[%clk 0:04:54.4]} 3. c4 {[%clk 0:04:56.6]} 3... dxc4 {[%clk
0:04:52.6]} 4. Nc3 {[%clk 0:04:53.5]} 4... c5 {[%clk 0:04:51.9]} 5. d5 {[%clk
0:04:52.7]} 5... e6 {[%clk 0:04:50.6]} 6. e4 {[%clk 0:04:51.3]} 6... exd5 {[%clk
0:04:48.3]} 7. exd5 {[%clk 0:04:50.5]} 7... Bd6 {[%clk 0:04:45.7]} 8. Bxc4
{[%clk 0:04:49.4]} 8... Qe7+ {[%clk 0:04:44.6]} 9. Be3 {[%clk 0:04:43.8]} 9...
O-O {[%clk 0:04:43.2]} 10. O-O {[%clk 0:04:42.7]} 10... Bg4 {[%clk 0:04:41.1]}
11. h3 {[%clk 0:04:39.9]} 11... Bh5 {[%clk 0:04:39.9]} 12. Re1 {[%clk
0:04:36.4]} 12... Qd8 {[%clk 0:04:31.2]} 13. Be2 {[%clk 0:04:31.5]} 13... Nbd7
{[%clk 0:04:28.9]} 14. Nd2 {[%clk 0:04:24.1]} 14... Bg6 {[%clk 0:04:26.7]} 15.
Nc4 {[%clk 0:04:22.1]} 15... Bb8 {[%clk 0:04:24.3]} 16. d6 {[%clk 0:04:13.3]}
16... a6 {[%clk 0:04:22]} 17. a4 {[%clk 0:04:10.4]} 17... Ba7 {[%clk 0:04:16.9]}
18. Bf3 {[%clk 0:04:06.4]} 18... Rb8 {[%clk 0:04:12.4]} 19. a5 {[%clk
0:03:58.7]} 19... Re8 {[%clk 0:04:01.8]} 20. Nd5 {[%clk 0:03:54.8]} 20... Ne5
{[%clk 0:03:52.4]} 21. Ne7+ {[%clk 0:03:38.4]} 21... Kh8 {[%clk 0:03:33]} 22.
Nxe5 {[%clk 0:03:35]} 1-0

[Event "Live Chess"]
[Site "Chess.com"]
[Date "2023.05.21"]
[Round "-"]
[White "AMCWAML"]
[Black "educatedlad"]
[Result "1-0"]
[WhiteElo "2248"]
[BlackElo "1624"]
[TimeControl "300"]
[EndTime "7:47:08 PDT"]
[Termination "AMCWAML won by checkmate"]

1. e4 {[%clk 0:04:56.4]} 1... e6 {[%clk 0:04:59.1]} 2. Nf3 {[%clk 0:04:55.8]}
2... d5 {[%clk 0:04:58.3]} 3. exd5 {[%clk 0:04:54.6]} 3... exd5 {[%clk
0:04:57.3]} 4. d4 {[%clk 0:04:54.2]} 4... Nc6 {[%clk 0:04:56.6]} 5. Bd3 {[%clk
0:04:53.2]} 5... Nb4 {[%clk 0:04:55.2]} 6. Be2 {[%clk 0:04:49.8]} 6... Bf5
{[%clk 0:04:51.7]} 7. Na3 {[%clk 0:04:49]} 7... Bd6 {[%clk 0:04:49.5]} 8. c3
{[%clk 0:04:40.4]} 8... Nc6 {[%clk 0:04:47.4]} 9. Qb3 {[%clk 0:04:39.7]} 9...
Nge7 {[%clk 0:04:46.2]} 10. Nc2 {[%clk 0:04:34.2]} 10... Rb8 {[%clk 0:04:42.7]}
11. Ne3 {[%clk 0:04:32.8]} 11... Bg6 {[%clk 0:04:41.3]} 12. Nxd5 {[%clk
0:04:30]} 12... Nxd5 {[%clk 0:04:39.8]} 13. Qxd5 {[%clk 0:04:29]} 13... O-O
{[%clk 0:04:34.1]} 14. O-O {[%clk 0:04:26]} 14... Re8 {[%clk 0:04:27.7]} 15. Qc4
{[%clk 0:04:21.8]} 15... Na5 {[%clk 0:04:20.3]} 16. Qa4 {[%clk 0:04:12.6]} 16...
Nc6 {[%clk 0:04:13.1]} 17. Bb5 {[%clk 0:04:07.9]} 17... Be4 {[%clk 0:04:02.8]}
18. Ng5 {[%clk 0:04:00.9]} 18... Bd5 {[%clk 0:03:57]} 19. c4 {[%clk 0:03:50.3]}
19... Be6 {[%clk 0:03:40.6]} 20. d5 {[%clk 0:03:45.7]} 20... Bd7 {[%clk
0:03:31.6]} 21. dxc6 {[%clk 0:03:42]} 21... Bxc6 {[%clk 0:03:30.7]} 22. Bxc6
{[%clk 0:03:41.1]} 22... bxc6 {[%clk 0:03:29.4]} 23. Qxc6 {[%clk 0:03:40.6]}
23... Rb6 {[%clk 0:03:27.9]} 24. Qf3 {[%clk 0:03:38.6]} 24... Rf8 {[%clk
0:03:24.1]} 25. b3 {[%clk 0:03:28.8]} 25... Be5 {[%clk 0:03:22.1]} 26. Qf5
{[%clk 0:03:24.3]} 26... Bxa1 {[%clk 0:03:18.2]} 27. Qxh7# {[%clk 0:03:22.7]}
1-0

[Event "Live Chess"]
[Site "Chess.com"]
[Date "2023.05.21"]
[Round "-"]
[White "davidlightfoot"]
[Black "grillage"]
[Result "0-1"]
[WhiteElo "680"]
[BlackElo "1784"]
[TimeControl "300"]
[EndTime "7:47:21 PDT"]
[Termination "grillage won by checkmate"]

1. d4 {[%clk 0:04:58.1]} 1... Nf6 {[%clk 0:04:58.1]} 2. c4 {[%clk 0:04:52.9]}
2... e6 {[%clk 0:04:56.6]} 3. g3 {[%clk 0:04:51.5]} 3... Bb4+ {[%clk 0:04:54.5]}
4. Bd2 {[%clk 0:04:46.9]} 4... Bxd2+ {[%clk 0:04:53.5]} 5. Nxd2 {[%clk
0:04:45.9]} 5... d6 {[%clk 0:04:53.1]} 6. Ngf3 {[%clk 0:04:43.1]} 6... Nbd7
{[%clk 0:04:51.1]} 7. Bg2 {[%clk 0:04:41.2]} 7... O-O {[%clk 0:04:49.8]} 8. Qc2
{[%clk 0:04:32.1]} 8... e5 {[%clk 0:04:45.3]} 9. dxe5 {[%clk 0:04:28.2]} 9...
Nxe5 {[%clk 0:04:41.7]} 10. O-O {[%clk 0:04:13.1]} 10... Re8 {[%clk 0:04:37.6]}
11. Rfe1 {[%clk 0:04:02.8]} 11... Rb8 {[%clk 0:04:27.1]} 12. h3 {[%clk
0:03:57.8]} 12... Bd7 {[%clk 0:04:25.4]} 13. Ne4 {[%clk 0:03:51.5]} 13... Nxf3+
{[%clk 0:04:03.2]} 14. exf3 {[%clk 0:03:41.7]} 14... Bc6 {[%clk 0:03:56.4]} 15.
Nxf6+ {[%clk 0:03:34.3]} 15... Qxf6 {[%clk 0:03:54.8]} 16. Rxe8+ {[%clk
0:03:27.5]} 16... Rxe8 {[%clk 0:03:53.2]} 17. g4 {[%clk 0:03:13.6]} 17... Bxf3
{[%clk 0:03:50.3]} 18. Bxf3 {[%clk 0:03:07.9]} 18... Qxf3 {[%clk 0:03:49.3]} 19.
Rc1 {[%clk 0:02:54.5]} 19... Re2 {[%clk 0:03:46.2]} 20. Qd1 {[%clk 0:02:43.7]}
20... Qxf2+ {[%clk 0:03:44.2]} 21. Kh1 {[%clk 0:02:38.2]} 21... Qg2# {[%clk
0:03:43.4]} 0-1

[Event "Live Chess"]
[Site "Chess.com"]
[Date "2023.05.21"]
[Round "-"]
[White "GMHarry-youtube"]
[Black "CheckThis4"]
[Result "0-1"]
[WhiteElo "2034"]
[BlackElo "2529"]
[TimeControl "300"]
[EndTime "7:47:27 PDT"]
[Termination "CheckThis4 won by checkmate"]

1. e4 {[%clk 0:04:58.2]} 1... d5 {[%clk 0:04:52.5]} 2. exd5 {[%clk 0:04:56.9]}
2... Nf6 {[%clk 0:04:51.6]} 3. d4 {[%clk 0:04:56.1]} 3... Bg4 {[%clk 0:04:49.1]}
4. f3 {[%clk 0:04:54.1]} 4... Bf5 {[%clk 0:04:48]} 5. Bb5+ {[%clk 0:04:53]} 5...
Nbd7 {[%clk 0:04:38.9]} 6. c4 {[%clk 0:04:47.6]} 6... e6 {[%clk 0:04:37.1]} 7.
dxe6 {[%clk 0:04:45.6]} 7... fxe6 {[%clk 0:04:34.1]} 8. Nc3 {[%clk 0:04:44.5]}
8... c6 {[%clk 0:04:33.3]} 9. Ba4 {[%clk 0:04:43.2]} 9... Qc7 {[%clk 0:04:31.1]}
10. Nge2 {[%clk 0:04:41.8]} 10... O-O-O {[%clk 0:04:29.7]} 11. Bf4 {[%clk
0:04:40.5]} 11... Bd6 {[%clk 0:04:16.7]} 12. Qd2 {[%clk 0:04:34.3]} 12... e5
{[%clk 0:04:03.5]} 13. dxe5 {[%clk 0:04:27.9]} 13... Nxe5 {[%clk 0:04:01.3]} 14.
Bxe5 {[%clk 0:04:21.5]} 14... Bxe5 {[%clk 0:03:59.8]} 15. Qe3 {[%clk 0:04:19.3]}
15... Rhe8 {[%clk 0:03:51.9]} 16. Ne4 {[%clk 0:04:07.4]} 16... Nxe4 {[%clk
0:03:44]} 17. fxe4 {[%clk 0:04:04.9]} 17... Qa5+ {[%clk 0:03:27.3]} 18. Kf1
{[%clk 0:03:54.5]} 18... Qxa4 {[%clk 0:03:19]} 19. exf5 {[%clk 0:03:52.7]} 19...
Bxb2 {[%clk 0:03:15.8]} 20. Qh3 {[%clk 0:03:39.5]} 20... Bxa1 {[%clk 0:03:11.4]}
21. f6+ {[%clk 0:03:37.4]} 21... Kb8 {[%clk 0:03:10.3]} 22. f7 {[%clk
0:03:37.3]} 22... Qd1+ {[%clk 0:03:07]} 23. Kf2 {[%clk 0:03:36.1]} 23... Qxe2+
{[%clk 0:03:05]} 24. Kg3 {[%clk 0:03:33.8]} 24... Re3+ {[%clk 0:03:02.6]} 25.
Kf4 {[%clk 0:03:33.1]} 25... Qf2+ {[%clk 0:02:55.9]} 26. Qf3 {[%clk 0:03:31]}
26... Rxf3+ {[%clk 0:02:53.6]} 27. gxf3 {[%clk 0:03:30.9]} 27... Rd4+ {[%clk
0:02:48.6]} 28. Kg5 {[%clk 0:03:28.3]} 28... Qe3+ {[%clk 0:02:45.9]} 29. Kf5
{[%clk 0:03:24.3]} 29... Qxf3+ {[%clk 0:02:44.2]} 30. Ke6 {[%clk 0:03:23.3]}
30... Re4+ {[%clk 0:02:41.4]} 31. Kd7 {[%clk 0:03:22.2]} 31... Qxf7+ {[%clk
0:02:39.5]} 32. Kd8 {[%clk 0:03:20.5]} 32... Qe7# {[%clk 0:02:37.6]} 0-1

[Event "Live Chess"]
[Site "Chess.com"]
[Date "2023.05.21"]
[Round "-"]
[White "diana21strabt"]
[Black "WilliamofOrange16th"]
[Result "0-1"]
[WhiteElo "1734"]
[BlackElo "1867"]
[TimeControl "300"]
[EndTime "7:47:30 PDT"]
[Termination "WilliamofOrange16th won by resignation"]

1. e4 {[%clk 0:04:58.3]} 1... d6 {[%clk 0:04:59.5]} 2. d4 {[%clk 0:04:55]} 2...
Nf6 {[%clk 0:04:58.8]} 3. Nc3 {[%clk 0:04:52.7]} 3... Nbd7 {[%clk 0:04:57.8]} 4.
Nf3 {[%clk 0:04:48.3]} 4... e5 {[%clk 0:04:57.3]} 5. dxe5 {[%clk 0:04:46.6]}
5... dxe5 {[%clk 0:04:57.2]} 6. Bc4 {[%clk 0:04:44.3]} 6... Be7 {[%clk
0:04:56.3]} 7. O-O {[%clk 0:04:40.4]} 7... O-O {[%clk 0:04:55]} 8. Bg5 {[%clk
0:04:31.5]} 8... c6 {[%clk 0:04:54.1]} 9. Qe2 {[%clk 0:04:27.8]} 9... Qc7 {[%clk
0:04:53.4]} 10. Rad1 {[%clk 0:04:20.4]} 10... b5 {[%clk 0:04:52.5]} 11. Bb3
{[%clk 0:04:18.3]} 11... Nc5 {[%clk 0:04:51.7]} 12. Bxf6 {[%clk 0:04:15.1]}
12... Bxf6 {[%clk 0:04:50.9]} 13. Nd2 {[%clk 0:04:08.8]} 13... a5 {[%clk
0:04:49.1]} 14. a4 {[%clk 0:04:05.3]} 14... b4 {[%clk 0:04:42.9]} 15. Na2 {[%clk
0:03:53.7]} 15... Nxb3 {[%clk 0:04:41]} 16. Nxb3 {[%clk 0:03:52.2]} 16... Ba6
{[%clk 0:04:40]} 17. Qf3 {[%clk 0:03:46.5]} 17... Bxf1 {[%clk 0:04:38.3]} 18.
Rxf1 {[%clk 0:03:45.7]} 18... Rad8 {[%clk 0:04:35]} 19. h3 {[%clk 0:03:43.4]}
19... c5 {[%clk 0:04:30]} 20. Rd1 {[%clk 0:03:35.8]} 20... Rxd1+ {[%clk
0:04:26.3]} 21. Qxd1 {[%clk 0:03:34.5]} 21... Rd8 {[%clk 0:04:26.2]} 22. Qe2
{[%clk 0:03:31.6]} 22... c4 {[%clk 0:04:25.4]} 23. Nd2 {[%clk 0:03:29.6]} 23...
Rc8 {[%clk 0:04:13.1]} 24. c3 {[%clk 0:03:27.2]} 24... Be7 {[%clk 0:04:08.6]}
25. cxb4 {[%clk 0:03:24.2]} 25... axb4 {[%clk 0:04:07.5]} 26. Nc1 {[%clk
0:03:21.2]} 26... c3 {[%clk 0:03:56.4]} 27. bxc3 {[%clk 0:03:19.7]} 27... Qxc3
{[%clk 0:03:52.3]} 28. Ndb3 {[%clk 0:03:16.2]} 28... Qc2 {[%clk 0:03:26.8]} 29.
Qxc2 {[%clk 0:03:10.5]} 29... Rxc2 {[%clk 0:03:26.7]} 30. a5 {[%clk 0:03:09.1]}
30... Bc5 {[%clk 0:03:21.4]} 31. Nd3 {[%clk 0:03:01.3]} 31... Bd6 {[%clk
0:03:04.9]} 32. a6 {[%clk 0:02:59]} 32... Ra2 {[%clk 0:03:00.3]} 33. Ndc5 {[%clk
0:02:46.8]} 33... Bxc5 {[%clk 0:02:58.4]} 34. Nxc5 {[%clk 0:02:45.3]} 34... b3
{[%clk 0:02:57.4]} 35. Nxb3 {[%clk 0:02:41.8]} 35... Rxa6 {[%clk 0:02:56.5]} 36.
Kf1 {[%clk 0:02:39.9]} 36... Ra2 {[%clk 0:02:45.5]} 37. g3 {[%clk 0:02:36.3]}
37... Kf8 {[%clk 0:02:44.7]} 38. Kg2 {[%clk 0:02:34.5]} 38... Ke7 {[%clk
0:02:43.5]} 39. Nc5 {[%clk 0:02:32.5]} 39... Kd6 {[%clk 0:02:39.9]} 40. Nd3
{[%clk 0:02:30.2]} 40... Rd2 {[%clk 0:02:35.1]} 41. Ne1 {[%clk 0:02:26.9]} 41...
Rd4 {[%clk 0:02:33.4]} 42. Kf3 {[%clk 0:02:25.1]} 42... g6 {[%clk 0:02:31.4]}
43. Nc2 {[%clk 0:02:23.5]} 43... Rd2 {[%clk 0:02:30.4]} 44. Ne3 {[%clk
0:02:21.3]} 44... Rd3 {[%clk 0:02:25.5]} 45. Ke2 {[%clk 0:02:19.3]} 45... Rb3
{[%clk 0:02:21.5]} 46. f4 {[%clk 0:02:13.8]} 46... exf4 {[%clk 0:02:14.6]} 47.
gxf4 {[%clk 0:02:12.7]} 47... h5 {[%clk 0:02:12.2]} 48. h4 {[%clk 0:02:06.7]}
48... Rb2+ {[%clk 0:02:10.6]} 49. Kf3 {[%clk 0:02:05.3]} 49... Rh2 {[%clk
0:02:09]} 50. Kg3 {[%clk 0:02:04.3]} 50... Rh1 {[%clk 0:02:06.9]} 51. Nc4+
{[%clk 0:01:59.7]} 51... Kc5 {[%clk 0:02:06]} 52. Ne5 {[%clk 0:01:58.7]} 52...
Kd4 {[%clk 0:02:02.9]} 53. Nxf7 {[%clk 0:01:55.7]} 53... Kxe4 {[%clk 0:02:01.9]}
54. Ng5+ {[%clk 0:01:51.8]} 54... Ke3 {[%clk 0:01:55.9]} 55. Nf3 {[%clk
0:01:43.9]} 55... Rf1 {[%clk 0:01:50.3]} 56. Ne5 {[%clk 0:01:42]} 56... Rg1+
{[%clk 0:01:36.2]} 57. Kh2 {[%clk 0:01:37.5]} 57... Kxf4 {[%clk 0:01:24.2]} 58.
Nxg6+ {[%clk 0:01:28.3]} 58... Rxg6 {[%clk 0:01:22.6]} 0-1

[Event "Live Chess"]
[Site "Chess.com"]
[Date "2023.05.21"]
[Round "-"]
[White "peleus16"]
[Black "LiamBellwood"]
[Result "0-1"]
[WhiteElo "1722"]
[BlackElo "1910"]
[TimeControl "300"]
[EndTime "7:47:31 PDT"]
[Termination "LiamBellwood won by checkmate"]

1. d4 {[%clk 0:04:56.6]} 1... e6 {[%clk 0:04:59.9]} 2. e3 {[%clk 0:04:53.7]}
2... f5 {[%clk 0:04:59.5]} 3. Bd3 {[%clk 0:04:50.1]} 3... Nf6 {[%clk 0:04:59]}
4. Nf3 {[%clk 0:04:47.1]} 4... b6 {[%clk 0:04:58.4]} 5. O-O {[%clk 0:04:44.5]}
5... Bb7 {[%clk 0:04:58.1]} 6. Nbd2 {[%clk 0:04:39.9]} 6... Be7 {[%clk
0:04:49.6]} 7. c3 {[%clk 0:04:37.1]} 7... O-O {[%clk 0:04:47.5]} 8. Re1 {[%clk
0:04:33.4]} 8... Ne4 {[%clk 0:04:46.9]} 9. Qc2 {[%clk 0:04:19.4]} 9... d5 {[%clk
0:04:40.7]} 10. Ne5 {[%clk 0:03:56.3]} 10... Nd7 {[%clk 0:04:29]} 11. f3 {[%clk
0:03:51.7]} 11... Nxd2 {[%clk 0:04:26]} 12. Bxd2 {[%clk 0:03:48.3]} 12... Nf6
{[%clk 0:04:25.7]} 13. Rac1 {[%clk 0:03:28.9]} 13... a5 {[%clk 0:04:20.7]} 14.
c4 {[%clk 0:03:20.9]} 14... Ba6 {[%clk 0:04:09.5]} 15. c5 {[%clk 0:03:04.9]}
15... Bxd3 {[%clk 0:04:09.4]} 16. Nxd3 {[%clk 0:03:02]} 16... b5 {[%clk
0:03:59.8]} 17. Kh1 {[%clk 0:02:41.4]} 17... c6 {[%clk 0:03:57.4]} 18. Rg1
{[%clk 0:02:33.3]} 18... Kh8 {[%clk 0:03:55]} 19. Ne5 {[%clk 0:02:24.9]} 19...
Qc7 {[%clk 0:03:48.7]} 20. g4 {[%clk 0:02:20.4]} 20... fxg4 {[%clk 0:03:41.4]}
21. fxg4 {[%clk 0:02:18.5]} 21... Ne4 {[%clk 0:03:38.8]} 22. Rg2 {[%clk
0:02:02.7]} 22... Bh4 {[%clk 0:03:14.1]} 23. Be1 {[%clk 0:01:34.8]} 23... Bg5
{[%clk 0:02:59.9]} 24. Qe2 {[%clk 0:01:19]} 24... Bf6 {[%clk 0:02:30.4]} 25. Bg3
{[%clk 0:01:10.3]} 25... Nxg3+ {[%clk 0:02:25.9]} 26. Rxg3 {[%clk 0:01:01.8]}
26... Bxe5 {[%clk 0:02:25.8]} 27. dxe5 {[%clk 0:00:56.3]} 27... Qxe5 {[%clk
0:02:25.7]} 28. g5 {[%clk 0:00:43.1]} 28... Qe4+ {[%clk 0:02:22]} 29. Rg2 {[%clk
0:00:34.2]} 29... Rf5 {[%clk 0:02:15]} 30. Qh5 {[%clk 0:00:11.7]} 30... Raf8
{[%clk 0:02:07.6]} 31. g6 {[%clk 0:00:05.8]} 31... Rf1+ {[%clk 0:02:06]} 32.
Rxf1 {[%clk 0:00:00.9]} 32... Rxf1# {[%clk 0:02:05.9]} 0-1

[Event "Live Chess"]
[Site "Chess.com"]
[Date "2023.05.21"]
[Round "-"]
[White "ossie57"]
[Black "Hussamalhaidar"]
[Result "1-0"]
[WhiteElo "1836"]
[BlackElo "1145"]
[TimeControl "300"]
[EndTime "7:47:36 PDT"]
[Termination "ossie57 won on time"]

1. e4 {[%clk 0:04:58.9]} 1... b6 {[%clk 0:04:56]} 2. d4 {[%clk 0:04:57.6]} 2...
Bb7 {[%clk 0:04:55.4]} 3. Bd3 {[%clk 0:04:52.5]} 3... Nf6 {[%clk 0:04:52.3]} 4.
Nc3 {[%clk 0:04:50.5]} 4... e6 {[%clk 0:04:48.3]} 5. Bg5 {[%clk 0:04:48.8]} 5...
Bb4 {[%clk 0:04:45.3]} 6. Ne2 {[%clk 0:04:47.8]} 6... h6 {[%clk 0:04:41.3]} 7.
Bh4 {[%clk 0:04:38.3]} 7... g5 {[%clk 0:04:37.7]} 8. Bg3 {[%clk 0:04:34.2]} 8...
Nxe4 {[%clk 0:04:34.3]} 9. Bxe4 {[%clk 0:04:29.7]} 9... Bxe4 {[%clk 0:04:31.8]}
10. O-O {[%clk 0:04:29]} 10... Bb7 {[%clk 0:04:25.5]} 11. d5 {[%clk 0:04:21.6]}
11... d6 {[%clk 0:04:00.3]} 12. dxe6 {[%clk 0:04:14.3]} 12... fxe6 {[%clk
0:03:56]} 13. Qd4 {[%clk 0:04:10.5]} 13... Bxc3 {[%clk 0:03:46.2]} 14. Nxc3
{[%clk 0:04:07.1]} 14... e5 {[%clk 0:03:42.1]} 15. Qd3 {[%clk 0:04:06]} 15...
Qf6 {[%clk 0:03:34.9]} 16. Qc4 {[%clk 0:03:51.9]} 16... Nc6 {[%clk 0:03:27.4]}
17. Nd5 {[%clk 0:03:49.6]} 17... Qd8 {[%clk 0:03:10.8]} 18. Qe4 {[%clk
0:03:43.3]} 18... Ne7 {[%clk 0:03:00.1]} 19. c4 {[%clk 0:03:36.3]} 19... Bxd5
{[%clk 0:02:51.3]} 20. cxd5 {[%clk 0:03:34.1]} 20... Rf8 {[%clk 0:02:42.2]} 21.
h4 {[%clk 0:03:28.6]} 21... Qd7 {[%clk 0:02:36]} 22. hxg5 {[%clk 0:03:26.2]}
22... hxg5 {[%clk 0:02:31.9]} 23. Rac1 {[%clk 0:03:19]} 23... Kd8 {[%clk
0:02:25.8]} 24. Rc3 {[%clk 0:03:07]} 24... Qf5 {[%clk 0:02:21.2]} 25. Qc4 {[%clk
0:03:01.5]} 25... Rc8 {[%clk 0:02:10.7]} 26. Rfc1 {[%clk 0:02:59.1]} 26... Qd7
{[%clk 0:02:02.5]} 27. Qa6 {[%clk 0:02:49.5]} 27... Nxd5 {[%clk 0:01:50.1]} 28.
Rc4 {[%clk 0:02:10.6]} 28... b5 {[%clk 0:01:43.1]} 29. Re4 {[%clk 0:01:57.2]}
29... Nb4 {[%clk 0:01:17.5]} 30. Rxb4 {[%clk 0:01:54]} 30... c6 {[%clk
0:01:11.2]} 31. Qa5+ {[%clk 0:01:46.9]} 31... Ke8 {[%clk 0:01:08.6]} 32. Re4
{[%clk 0:01:31.1]} 32... Qf5 {[%clk 0:00:56.6]} 33. Qe1 {[%clk 0:01:24.1]} 33...
c5 {[%clk 0:00:45.7]} 34. Bxe5 {[%clk 0:01:21.8]} 34... Kd7 {[%clk 0:00:24.1]}
35. Rd1 {[%clk 0:01:10.4]} 35... Rce8 {[%clk 0:00:18.8]} 36. Rxd6+ {[%clk
0:01:08.3]} 36... Kc8 {[%clk 0:00:15.6]} 37. Rd5 {[%clk 0:00:57.4]} 37... Rxe5
{[%clk 0:00:13.4]} 38. Rdxe5 {[%clk 0:00:54.7]} 38... Qd7 {[%clk 0:00:10]} 39.
Rxc5+ {[%clk 0:00:52.2]} 39... Kb8 {[%clk 0:00:07.8]} 40. Rce5 {[%clk 0:00:49]}
40... Rh8 {[%clk 0:00:04.8]} 41. Re8+ {[%clk 0:00:46.7]} 41... Rxe8 {[%clk
0:00:02.7]} 42. Rxe8+ {[%clk 0:00:45.8]} 42... Qxe8 {[%clk 0:00:00.7]} 43. Qxe8+
{[%clk 0:00:44.7]} 1-0